Cogmind - Beta 17 @@@ ROGUE MODE // 2026.07.07 @ 21:28:49 Player: Smol John Result: Self-destructed Performance ------------- Evolutions (2) 1000 Regions Visited (3) 600 Robots Destroyed (30) 150 Value Destroyed (1060) 1060 Prototype IDs (0) 0 Alien Tech Used (0) 0 Bonus (0) 0 TOTAL SCORE: 2810 Bonus ------- None Cogmind --------- Core Integrity 123/550 Matter 218/300 Energy 100/100 System Corruption 0% Temperature Cool (0) Movement Core (350) Ox6 Location -8/Materials Parts ------- > --- POWER (1) -------- (None) > --- PROPULSION (4) --- (None) > --- UTILITY (4) ------ Large Storage Unit Improved Sensor Array > --- WEAPON (2) ------- (None) > --- INVENTORY (15) --- Compact Wheel Hacking Suite Light Assault Rifle Subdweller Machine Gun Assault Cannon Assault Cannon Assault Cannon Peak State ------------ > --- POWER ------------ Ion Engine > --- PROPULSION ------- Aluminum Leg Aluminum Leg Aluminum Leg Carbon-fiber Leg > --- UTILITY ---------- Large Storage Unit Improved Terrain Scanner Utility Shielding Hardened Light Armor Plating > --- WEAPON ----------- Subdweller Machine Gun Assault Cannon > --- INVENTORY -------- Ion Engine Light Treads Light Treads Aluminum Leg Compact Wheel Small Storage Unit Hacking Suite Light Assault Rifle Assault Cannon Assault Cannon Assault Cannon Assault Cannon Assault Cannon Assault Cannon Rocket Launcher [Rating: 22] Favorites ----------- Power Ion Engine Engine Ion Engine Propulsion Aluminum Leg Treads Light Treads Leg Aluminum Leg Wheel Compact Wheel Utility Small Storage Unit Device Improved Terrain Scanner Storage Small Storage Unit Processor Improved Signal Interpreter Protection Utility Shielding Weapon Light Assault Rifle Ballistic Gun Light Assault Rifle Ballistic Cannon Assault Cannon Launcher Rocket Launcher Build | -11 -10 -10 -8 ------- Run | Yrd Mat Sub Mat Slots Evolved 4 | . . . 4 Power . | . . . . Propulsion 2 | . . . 2 Utility 2 | . . . 2 Weapon . | . . . . Parts Attached 35 | 6 1 6 22 Power 3 | 1 . . 2 Engine 3 | 1 . . 2 Core . | . . . . Reactor . | . . . . Propulsion 13 | 2 . 2 9 Treads 2 | . . 1 1 Leg 10 | 2 . 1 7 Wheel 1 | . . . 1 Hover . | . . . . Flight . | . . . . Utility 8 | 1 1 1 5 Device 3 | . 1 1 1 Storage 2 | 1 . . 1 Processor 1 | . . . 1 Hackware . | . . . . Protection 2 | . . . 2 Artifact . | . . . . Weapon 11 | 2 . 3 6 Energy Gun . | . . . . Energy Cannon . | . . . . Ballistic Gun 6 | 2 . 3 1 Ballistic Cannon 4 | . . . 4 Launcher 1 | . . . 1 Special Weapon . | . . . . Impact Weapon . | . . . . Slashing Weapon . | . . . . Piercing Weapon . | . . . . Special Melee Weapon . | . . . . Unidentified Prototypes . | . . . . Parts Lost 26 | . . 5 21 Power 2 | . . . 2 Propulsion 11 | . . 2 9 Utility 5 | . . 1 4 Weapon 8 | . . 2 6 Highest Loss Streak 18 | . . 4 18 To Critical Strikes 1 | . . . 1 Average Backups 7 | 4 7 6 12 Power . | . 1 1 . Propulsion 3 | 3 4 2 3 Utility 1 | . 1 2 1 Weapon 1 | . 1 . 6 Tool/Special . | . . . . Unused Backups 7 | . 3 . 4 Power . | . . . . Propulsion 2 | . 2 . . Utility 2 | . 1 . 1 Weapon 3 | . . . 3 Tool/Special . | . . . . Average Slot Usage (%) 91 | . 99 90 92 Engine 12 | . 14 14 8 Leg 22 | . 28 18 30 Device 12 | . 13 13 6 Storage 12 | . 14 14 9 Protection 3 | . . . 14 Ballistic Gun 23 | . 28 27 5 Ballistic Cannon 2 | . . . 11 Peak Build Rating 22 | 6 8 12 22 Average Rating 11 | 4 7 10 18 On Entrance 6 | . 6 8 11 Avg Prop Armor Cover (%) 7 | . . 8 6 Naked Turns . | . . . . Heaviest Build 42 | 13 14 17 42 Greatest Support 45 | 20 20 25 45 Greatest Overweight (x) 2 | . . 1 2 Average Overweight (x) . | . . . . Largest Inventory Capacity 15 | 8 8 8 15 Average Capacity 9 | 6 8 8 14 Most Carried 15 | 6 8 8 15 Average Carried 7 | 4 7 6 12 Final Capacity 15 | 8 8 8 15 Final Carried 8 | 6 8 6 7 Class Distribution -------------------- 92% | Mutant 7% | Scavenger-Mutant Dominant Class ---------------- Mutant | -10/Materials Mutant | -10/Subcaves Mutant | -8/Materials Resources | -11 -10 -10 -8 ----------- Run | Yrd Mat Sub Mat Matter Collected 1114 | 200 27 210 677 Remotely . | . . . . Salvage Created 918 | . 65 136 717 Parts 52 | . 2 10 40 Haulers Intercepted . | . . . . Recyclers Shooed 1 | . . . 1 Parts Field Recycled . | . . . . Retrieved Matter . | . . . . Parts Self-Destructed 11 | . . 11 . Prevented . | . . . . Parts Restored . | . . . . Kills | -11 -10 -10 -8 ------- Run | Yrd Mat Sub Mat Combat Hostiles Destroyed 26 | . 1 3 22 Melee 1 | . . . 1 Guns 3 | . 1 2 . Cannons 17 | . . . 17 AOE 5 | . . 1 4 Classes Destroyed 10 | . 2 1 7 Builder 1 | . . . 1 Tunneler 1 | . 1 . . Recycler 1 | . . . 1 Watcher 1 | . . . 1 Swarmer 6 | . . . 6 Grunt 12 | . 1 . 11 Sentry 3 | . . . 3 Specialist 1 | . . . 1 Heavy 1 | . . . 1 Subdweller 3 | . . 3 . Best Kill Streak 9 | . 1 2 9 Combat Bots Only 8 | . 1 2 8 Max Kills in Single Turn 2 | . 1 1 2 Gunslinging . | . . . . Exploded 1 | . . 1 1 Melee 1 | . . . 1 Uniques/NPCs Destroyed . | . . . . Combat | -11 -10 -10 -8 -------- Run | Yrd Mat Sub Mat Hostile Shots Fired 294 | . 4 31 259 Missed 96 | . 1 10 85 Hits 198 | . 3 21 174 Projectile 198 | . 3 21 174 AOE 3 | . . 3 . Critical Strikes 3 | . . 1 2 Damage Taken 3238 | . 34 588 2616 Core 533 | . . 106 427 Absorbed by Shields . | . . . . Redirected to Shielding 52 | . . . 52 Core Remaining (%) 78 | 100 . 57 . Volleys Fired 97 | . 13 22 62 Largest 2 | . 2 2 2 Hottest 74 | . 40 50 74 Shots Fired 172 | . 26 37 109 Gun 73 | . 26 37 10 Cannon 92 | . . . 92 Launcher 7 | . . . 7 Special . | . . . . Kinetic 165 | . 26 37 102 Thermal . | . . . . Explosive 7 | . . . 7 Electromagnetic . | . . . . Robot Hit Streak 22 | . 3 10 22 Robot Miss Streak 5 | . 3 1 5 Penetration Max . | . . . . Secondary Targets 1 | . . 1 . Max Gunslinging Chain 1 | . . 1 . Shots Hit Robots 98 | . 10 33 55 Core Hits 56 | . 6 7 43 Critical Kills . | . . . . Critical Parts Destroyed . | . . . . Critical Strikes 1 | . . . 1 Blast 1 | . . . 1 Melee Attacks . | . . . . Impact . | . . . . Slashing . | . . . . Piercing . | . . . . Sneak Attacks . | . . . . Combat Hostiles . | . . . . Follow-up Attacks . | . . . . Damage Inflicted 2748 | . 125 390 2233 Guns 565 | . 123 390 52 Cannons 1384 | . . . 1384 Explosions 784 | . . . 784 Melee . | . . . . Ramming 15 | . 2 . 13 Kinetic 1949 | . 123 390 1436 Thermal . | . . . . Explosive 784 | . . . 784 Electromagnetic . | . . . . Impact . | . . . . Slashing . | . . . . Piercing . | . . . . Highest Corruption . | . . . . Average Corruption . | . . . . Corruption Purged . | . . . . Corruption Blocked . | . . . . Overload Shots . | . . . . Overflow Damage 39 | . . . 39 Projectiles 37 | . . . 37 Explosions 2 | . . . 2 Melee . | . . . . Knockbacks 10 | . . . 10 Impact 1 | . . . 1 Kinetic 8 | . . . 8 Secondary 1 | . . . 1 Self-Inflicted Damage 46 | . . . 46 Shots 3 | . . . 3 Rammed . | . . . . Targets Rammed 5 | . 1 . 4 Kicked 5 | . 1 . 4 Crushed . | . . . . Highest Temperature 374 | . 6 . 374 Average Temperature 121 | . 6 . 125 Received Heat Transfer 684 | . 18 90 576 Effects 1 | . . . 1 Damage (minor) 1 | . . . 1 Siege Activations . | . . . . Martial Activations . | . . . . Shielding Activations . | . . . . Robots Disrupted . | . . . . Combat Hostiles . | . . . . Robots Corrupted . | . . . . Combat Hostiles . | . . . . Parts Fried . | . . . . Impact Corruptions . | . . . . Robots Melted . | . . . . Combat Hostiles . | . . . . Parts Melted . | . . . . Heat Transferred . | . . . . Parts Sabotaged . | . . . . Parts Stolen . | . . . . Parts Stripped . | . . . . Power Chain Reactions . | . . . . Alert | -11 -10 -10 -8 ------- Run | Yrd Mat Sub Mat Maximum Alert Level 1 | . . . 1 Low Security (%) 78 | 100 100 . 59 Level 1 21 | . . . 40 Level 2 . | . . . . Level 3 . | . . . . Level 4 . | . . . . Level 5 . | . . . . High Security . | . . . . Max Security . | . . . . Peak Influence 351 | . 20 . 351 Initial . | . . . . Average 82 | . 1 . 154 Influence Increases 709 | . 51 . 658 Destroy 0b10 Robot/C 460 | . 20 . 440 Destroy 0b10 Robot/NC 20 | . 5 . 15 Destroy Leader 92 | . . . 92 Successful Hack 32 | . 26 . 6 Disable Machine 45 | . . . 45 Destroy Structure 45 | . . . 45 Lose Combat Pursuer 15 | . . . 15 Influence Decreases 463 | . 51 . 412 Time Decay 253 | . 51 . 202 Lost Part 210 | . . . 210 Squads Dispatched 6 | . 1 . 5 Investigation . | . . . . Extermination . | . . . . Reinforcement 5 | . 1 . 4 Assault . | . . . . Garrison 1 | . . . 1 Intercept . | . . . . Searches Triggered . | . . . . Construction Impeded 1 | . . . 1 Haulers Reinforced . | . . . . Active Scanning Responses . | . . . . Cargo Convoy Interrupts . | . . . . Stealth | -11 -10 -10 -8 --------- Run | Yrd Mat Sub Mat Distress Signals 2 | . 1 . 1 Communications Jammed . | . . . . Distress Signals . | . . . . Times Spotted 53 | . 3 19 31 Peak Tracking Total 9 | . 2 7 9 Tactical Retreats 1 | . . . 1 Traps | -11 -10 -10 -8 ------- Run | Yrd Mat Sub Mat Traps Triggered 1 | . 1 . . Indirectly . | . . . . Trap Hack Attempts . | . . . . Triggered . | . . . . Disarmed 2 | . 2 . . Reprogrammed 6 | . . . 6 Reused . | . . . . Traps Extracted . | . . . . Installed . | . . . . Triggered . | . . . . Machines | -11 -10 -10 -8 ---------- Run | Yrd Mat Sub Mat Machines Disabled 3 | . . . 3 Max in Single Turn 2 | . . . 2 Machines Repaired . | . . . . Machines Dismantled . | . . . . Machines Sabotaged . | . . . . Overloaded Fab Kills . | . . . . Hacking | -11 -10 -10 -8 --------- Run | Yrd Mat Sub Mat Machines Accessed 6 | . 5 . 1 Terminals 5 | . 4 . 1 Fabricators . | . . . . Repair Stations . | . . . . Recycling Units 1 | . 1 . . Scanalyzers . | . . . . Garrison Access . | . . . . Total Hacks 21 | . 19 . 2 Successful 13 | . 11 . 2 Failed 8 | . 8 . . Catastrophic 2 | . 2 . . Database Lockouts . | . . . . Manual 10 | . 9 . 1 Terminals 18 | . 16 . 2 Fabricators . | . . . . Repair Stations . | . . . . Recycling Units 3 | . 3 . . Scanalyzers . | . . . . Garrison Access . | . . . . Terminal Hacks 8 | . 7 . 1 Record 2 | . 2 . . Robot Analysis 1 | . 1 . . Emergency Access Points 1 | . 1 . . Locate Traps 1 | . 1 . . Disarm Traps 1 | . 1 . . Reprogram Traps 1 | . . . 1 Zone Layout 1 | . 1 . . Fabricator Hacks . | . . . . Repair Station Hacks . | . . . . Recycling Unit Hacks 2 | . 2 . . Report Inventory 1 | . 1 . . Retrieve Components 1 | . 1 . . Scanalyzer . | . . . . Garrison Access Hacks . | . . . . Unauthorized Hacks 3 | . 2 . 1 Terminals 3 | . 2 . 1 Assimilate 3 | . 2 . 1 Fabricators . | . . . . Repair Stations . | . . . . Recycling Units . | . . . . Scanalyzers . | . . . . Garrison Access . | . . . . Data Cores Recovered . | . . . . Used . | . . . . Hacking Detections 5 | . 4 . 1 Full Trace Events 1 | . 1 . . Feedback Events . | . . . . Feedback Blocked . | . . . . Robot Schematics Acquired . | . . . . Robots Built . | . . . . Authchips . | . . . . Time . | . . . . Total Robot Build Rating . | . . . . Part Schematics Acquired . | . . . . Parts Built . | . . . . Authchips . | . . . . Time . | . . . . Total Part Build Rating . | . . . . Part Studies Acquired . | . . . . Parts Repaired . | . . . . Time . | . . . . Parts Recycled . | . . . . Recycled Matter . | . . . . Retrieved Matter . | . . . . Retrieved Components 1 | . 1 . . Parts Scanalyzed . | . . . . Part Schematics Acquired . | . . . . Parts Damaged . | . . . . Bothacking | -11 -10 -10 -8 ------------ Run | Yrd Mat Sub Mat Used RIF Installer . | . . . . Robots Hacked . | . . . . Non-combat . | . . . . Combat . | . . . . Robot Hacks Applied . | . . . . Relay Couplers Released . | . . . . Fabnet Peak Effective % . | . . . . Robots Rewired . | . . . . Allies Hacked . | . . . . Hacks Repelled . | . . . . Allies | -11 -10 -10 -8 -------- Run | Yrd Mat Sub Mat Total Allies . | . . . . Largest Group . | . . . . Highest-Rated Group . | . . . . Highest-Rated Ally . | . . . . Total Orders . | . . . . Ally Attacks . | . . . . Total Damage . | . . . . Kills . | . . . . Allies Corrupted . | . . . . Allies Melted . | . . . . Intel | -11 -10 -10 -8 ------- Run | Yrd Mat Sub Mat Active Infowar (turns) 2946 | . 480 2003 463 Sensors 245 | . . . 245 Terrain 2047 | . . 1829 218 Structural 654 | . 480 174 . Robot Analysis Total 1 | . 1 . . Derelict Logs Recovered 1 | . . 1 . Drone Launches . | . . . . Drone Recoveries . | . . . . Exploration | -11 -10 -10 -8 ------------- Run | Yrd Mat Sub Mat Turns Passed 3267 | 87 500 2011 669 Spaces Moved 2001 | 65 378 1224 334 Core 8 | 8 . . . Treads 50 | . . 29 21 Legs 1943 | 57 378 1195 313 Wheels . | . . . . Hover . | . . . . Flight . | . . . . Fastest Speed 50 | 50 120 120 120 Average Speed 145 | 111 120 159 130 Slowest Speed 260 | 120 120 190 260 Overloaded Moves . | . . . . Propulsion Burnouts . | . . . . Robots Hopped . | . . . . Potential Cave-ins . | . . . . Cave-ins Triggered . | . . . . Exploration Rate (%) 33 | 4 50 53 25 Regions Visited 3 Branch Regions 1 Pre-discovered Areas . | . . . . Known Exits Taken . | . . . . Unknown Exits Taken 3 | 1 1 1 . Scrap Searched . | . . . . Spaces Dug . | . . . . Terrain Destroyed 46 | . . . 46 Melee . | . . . . Projectile 15 | . . . 15 AOE 31 | . . . 31 Terrain Rammed . | . . . . Walls Destroyed . | . . . . Machines Disabled . | . . . . Actions | -11 -10 -10 -8 --------- Run | Yrd Mat Sub Mat Total 2179 | 76 401 1253 449 Wait 3 | . . . 3 Move 1998 | 64 377 1223 334 Hop . | . . . . Pick Up 25 | 6 5 1 13 Fast Attach 17 | 6 2 2 7 Attach 15 | . . 3 12 Detach 1 | . . . 1 Swap 11 | . . 1 10 Drop 7 | . 3 1 3 Fire 97 | . 13 22 62 Melee . | . . . . Ram . | . . . . Kick 5 | . 1 . 4 Crush . | . . . . Escape Stasis . | . . . . Rewire . | . . . . Trap . | . . . . Miscellaneous . | . . . . Route ------- -11/Scrapyard -10/Materials (discovered 2 exits: [*Min] / [*Sub]) -10/Subcaves -8/Materials History --------- Turn | Location | Event 13 | -11/Scrapyard | Discovered new exit (range 16) 88 | -11/Scrapyard | Entered Materials 312 | -10/Materials | Build established: Mutant 541 | -10/Materials | Discovered new exit (range 6) 566 | -10/Materials | Discovered new exit (range 12) 588 | -10/Materials | Entered Subcaves 589 | -10/Subcaves | Approached by a straggling Scientist 722 | -10/Subcaves | Shifting Twisted Machinery released Piercing Trap 730 | -10/Subcaves | Learned Materials interactive machine intel 759 | -10/Subcaves | Ambushed by swarm of Subdwellers 770 | -10/Subcaves | Ambushed by Subdweller buried in earth 799 | -10/Subcaves | Lost 4 parts (1n1u2w) 1321 | -10/Subcaves | Ambushed by Subdwellers from Twisted Machinery 2540 | -10/Subcaves | Discovered new exit (range 5) 2599 | -10/Subcaves | Entered Materials 2599 | -8/Materials | Evolved 4 slots: Propulsion x2, Utility x2 2600 | -8/Materials | Loaded intel: 19 interactive machine locations 2845 | -8/Materials | Destroyed 8 combat bots 2873 | -8/Materials | Lost 3 parts (2n1u) 3215 | -8/Materials | Destroyed 8 combat bots 3241 | -8/Materials | Core integrity fell below 50% 3266 | -8/Materials | Garrison activated, responded to threat 3268 | -8/Materials | Self-destructed Last Messages --------------- 03255_ K-01 Serf collects debris. 03256_ Utility Shielding destroyed. 03256_ U-05 Engineer builds a Wall. 03258_ K-01 Serf collects debris. 03258_ H-61 Shepherd destroyed. 03259_ Critical hit (Destroy). 03259_ Lgt. Treads destroyed. 03259_ W-25 Informer sends out distress signal. 03260_ U-05 Engineer builds a Door. 03261_ K-01 Serf collects debris. 03262_ Assault Cannon destroyed. 03264_ K-01 Serf destroyed. 03264_ X-57 Shotgunner destroyed. 03265_ U-05 Engineer lays Concrete. 03266_ X-57 Shotgunner calls for garrison reinforcements. 03266_ ALERT: Activating Garrison Access M001. 03267_ U-05 Engineer lays Concrete. 03268_ Assault Cannon destroyed. 03268_ Aluminum Leg destroyed. Map ----- +----------------------------------------------------+ | ????????????????????????????????????????# #????? | | ????????????????????????????????????????# #????? | | ????????????????????????????????????????+ #????? | | ???????????????????????????????????"????# ^#????? | | ???????????????????????????????????T????# #????? | | ???????????????????????????????????"????# % #????? | | ????????????????????????????????????????# #????? | | ????????????????????????????????????????# #??? | | ????????????????????????????????????????# #??# | | ????????????????????????????????????????#% #??# | | ????????????????????????????????????????# #??# | | ????????????????????????????????????????# #??# | | ???????????????????????????????????????## ##?# | | ??????????????????#??###???????????????## ##?# | | ??????????????????# ?????????????## ##?# | | ?????""???????????# #??????????## ##?# | | ??????G"??????????# #??########## #??# | | ?????""???????????# #??? / # #??# | | ??????????????????# """"" #????# !!!# #??# | | ??????????????????? """"" #????#"" !! # #??# | | ???????????????????? " """ #?????"Y !! # #??# | | ????????????????????? % %| ??????"" # #??# | | ???????????# ###=???###+#!##????##??? # #??# | | ???????????# [[ # %%*############+# #### | | ??????????# !%![[ **=*%* % % ## | | ??????????# ! x ! [%!@*=! ## | | ??????????# =%! % == *%[ a ## | | ??????????+ = =################# ## | | ??????????? ##### ##???????????????# ## | | ??????????????????####ug # ???????????????# ## | | ?????????????????????; # ??????????????## ## | | ???????????????????? % g^+ "T"???????????# # | | ??????????????????? #!%!# """???????????# | | ?????????????????? # ! ?#??????????????# | | ?????????????????###?# % ????????????????# | | ????????????????????? ????????????????# ### | | ????????????????????? ????????????????######### | | ???????????????????? ????????????????????? # | | ????????????????????# ????????????????????"T"?# | | ????????????????????? ????????????????????"""?# | | ??"Y"????????????????????????????????????????????# | | ??"""????????????????????????????????????????????# | | ???????????????"T"???????????????????????????????# | | ?????????????????????????????????????????????????# | | ?????????????????????????????????????????????????# | | ?????????????????????????????????????????????????# | | ?????????????????????????????????????????????????# | | ?????????????????????????????????????????????????# | | ?????????????????????????????????????????????????? | | ?????????????????????????????????????????????????? | +----------------------------------------------------+ Best States ------------- Heat Dissipation 31 Energy Generation 10 Energy Capacity 250 Matter Stores 300 Matter Capacity 300 Sight Range 16 Robot Scan Range 15 Terrain Scan Range 16 Terrain Scan Density 10 Armor Coverage 150 Utility Shielding 33 Evasion (%) 55 Recoil Reduction 2 Item Schematics ----------------- None Robot Schematics ------------------ None Fabricated ------------ Nothing Repaired ---------- Nothing Studied --------- None Alien Tech Used ----------------- None Achievements -------------- Do Not Disturb True Hacker Challenges ------------ None Game ------ Seed SiegeTacticalChargecaster Manual? 0 Play Time 00:23:23 Cumulative 19.9 hours Start 2026.07.07 @ 19:59:27 End 2026.07.07 @ 21:28:49 Sessions 3 Manual Loads 0 Difficulty Rogue Special Mode None Game No. 28 Rogue 28 Adventurer 0 Explorer 0 Win Type - Total 0 Types 0/0/0/0/0/0/0/0/0/0 Lore% 23 Gallery% 23 Achievement% 18 Wizard Run 0 Options --------- Layout 1 ASCII 0 Keyboard 0 Movement Numpad Keybinds 0 Fullscreen 1 Font 20/SmallcapsGlow Map View 50x35 Zoom Use 0% Tactical HUD 1 Map Filters NONE Filters NONE Steam 1 RUN: 0c09b2ea-04b8-4b46-94f3-6c55ceff83aa